[Event "Titled Tuesday Blitz August 24 2021"]
[White "Farahat, Ali"]
[Black "Skliarov, Viktor"]
[WhiteFideId "10600507"]
[BlackFideId "14106736"]
[WhiteElo "2321"]
[BlackElo "2281"]
[Result "1-0"]
[Round "02"]
[TimeControl "180+1"]
[Date "2021.08.24"]
[WhiteClock "0:00:26"]
[BlackClock "0:00:16"]

1. e4 {[%clk 0:03:00]}  c5 {[%clk 0:02:57]} 2. Nf3 {[%clk 0:03:01]}  Nc6 {[%clk 0:02:56]} 3. Bb5 {[%clk 0:03:00]}  e6 {[%clk 0:02:54]} 4. O-O {[%clk 0:02:59]}  Nge7 {[%clk 0:02:54]} 5. d4 {[%clk 0:02:58]}  cxd4 {[%clk 0:02:54]} 6. Nxd4 {[%clk 0:02:57]}  Qb6 {[%clk 0:02:54]} 7. Nxc6 {[%clk 0:02:52]}  dxc6 {[%clk 0:02:51]} 8. Bd3 {[%clk 0:02:52]}  Ng6 {[%clk 0:02:48]} 9. Nd2 {[%clk 0:02:51]}  Qc7 {[%clk 0:02:22]} 10. a4 {[%clk 0:02:42]}  Bd6 {[%clk 0:02:13]} 11. Kh1 {[%clk 0:02:29]}  h5 {[%clk 0:02:07]} 12. h3 {[%clk 0:02:11]}  Nf4 {[%clk 0:01:46]} 13. Nc4 {[%clk 0:02:10]}  g5 {[%clk 0:01:45]} 14. Nxd6+ {[%clk 0:01:57]}  Qxd6 {[%clk 0:01:44]} 15. Bc4 {[%clk 0:01:52]}  Qe5 {[%clk 0:01:31]} 16. Qf3 {[%clk 0:01:48]}  Bd7 {[%clk 0:01:22]} 17. Bd2 {[%clk 0:01:48]}  Rh7 {[%clk 0:01:06]} 18. b4 {[%clk 0:01:45]}  O-O-O {[%clk 0:01:02]} 19. b5 {[%clk 0:01:40]}  c5 {[%clk 0:00:59]} 20. h4 {[%clk 0:01:27]}  f6 {[%clk 0:00:53]} 21. a5 {[%clk 0:01:20]}  Ng6 {[%clk 0:00:39]} 22. hxg5 {[%clk 0:01:02]}  fxg5 {[%clk 0:00:38]} 23. Bc3 {[%clk 0:01:03]}  Qf4 {[%clk 0:00:38]} 24. Qxf4 {[%clk 0:00:57]}  Nxf4 {[%clk 0:00:37]} 25. b6 {[%clk 0:00:51]}  a6 {[%clk 0:00:37]} 26. Rfd1 {[%clk 0:00:47]}  Bc6 {[%clk 0:00:35]} 27. Rxd8+ {[%clk 0:00:41]}  Kxd8 {[%clk 0:00:35]} 28. f3 {[%clk 0:00:41]}  g4 {[%clk 0:00:27]} 29. Be5 {[%clk 0:00:39]}  Ng6 {[%clk 0:00:24]} 30. Bf6+ {[%clk 0:00:37]}  Ke8 {[%clk 0:00:24]} 31. Rd1 {[%clk 0:00:35]}  gxf3 {[%clk 0:00:19]} 32. gxf3 {[%clk 0:00:31]}  Nf4 {[%clk 0:00:19]} 33. Bg5 {[%clk 0:00:27]}  e5 {[%clk 0:00:16]} 34. Rd8# {[%clk 0:00:26]} 1-0


[Site "https://www.chess.com"]

[Event "Titled Tuesday Blitz August 24 2021"]
[White "Florescu, Codrut-Constantin"]
[Black "Sarana, Alexey"]
[WhiteFideId "1202200"]
[BlackFideId "24133795"]
[WhiteElo "2243"]
[BlackElo "2646"]
[Result "0-1"]
[Round "02"]
[TimeControl "180+1"]
[Date "2021.08.24"]
[WhiteClock "0:00:20"]
[BlackClock "0:00:59"]

1. d4 {[%clk 0:03:00]}  Nf6 {[%clk 0:02:59]} 2. c4 {[%clk 0:03:00]}  e6 {[%clk 0:02:59]} 3. Nf3 {[%clk 0:02:59]}  d5 {[%clk 0:03:00]} 4. Nc3 {[%clk 0:02:58]}  dxc4 {[%clk 0:02:58]} 5. e3 {[%clk 0:02:57]}  a6 {[%clk 0:02:58]} 6. Bxc4 {[%clk 0:02:57]}  b5 {[%clk 0:02:58]} 7. Bd3 {[%clk 0:02:56]}  c5 {[%clk 0:02:55]} 8. O-O {[%clk 0:02:55]}  Bb7 {[%clk 0:02:52]} 9. Re1 {[%clk 0:02:50]}  Nbd7 {[%clk 0:02:51]} 10. a3 {[%clk 0:02:32]}  Bd6 {[%clk 0:02:49]} 11. Ne2 {[%clk 0:02:26]}  O-O {[%clk 0:02:45]} 12. Ng3 {[%clk 0:02:26]}  cxd4 {[%clk 0:02:18]} 13. exd4 {[%clk 0:02:25]}  Rc8 {[%clk 0:02:15]} 14. Bg5 {[%clk 0:02:18]}  Qb6 {[%clk 0:02:15]} 15. Qe2 {[%clk 0:02:08]}  h6 {[%clk 0:02:11]} 16. Be3 {[%clk 0:02:01]}  Nd5 {[%clk 0:02:09]} 17. Bd2 {[%clk 0:02:01]}  Nf4 {[%clk 0:02:07]} 18. Bxf4 {[%clk 0:02:00]}  Bxf4 {[%clk 0:02:08]} 19. Rad1 {[%clk 0:01:54]}  Bxg3 {[%clk 0:02:02]} 20. hxg3 {[%clk 0:01:53]}  Rfd8 {[%clk 0:02:03]} 21. g4 {[%clk 0:01:47]}  Nf6 {[%clk 0:02:01]} 22. g5 {[%clk 0:01:32]}  hxg5 {[%clk 0:02:01]} 23. Nxg5 {[%clk 0:01:28]}  Rxd4 {[%clk 0:02:01]} 24. Bg6 {[%clk 0:01:12]}  Rg4 {[%clk 0:01:13]} 25. Bxf7+ {[%clk 0:01:04]}  Kf8 {[%clk 0:01:11]} 26. Bxe6 {[%clk 0:00:38]}  Rxg2+ {[%clk 0:01:07]} 27. Kf1 {[%clk 0:00:38]}  Rxg5 {[%clk 0:01:07]} 28. Bxc8 {[%clk 0:00:26]}  Bg2+ {[%clk 0:01:06]} 29. Kg1 {[%clk 0:00:26]}  Bf3+ {[%clk 0:01:06]} 30. Kh2 {[%clk 0:00:20]}  Qc7+ {[%clk 0:00:59]} 0-1


[Site "https://www.chess.com"]

[Event "Titled Tuesday Blitz August 24 2021"]
[White "Goryachkina, Aleksandra"]
[Black "Koridze, Lile"]
[WhiteFideId "4147103"]
[BlackFideId "13612514"]
[WhiteElo "2441"]
[BlackElo "1978"]
[Result "1-0"]
[Round "02"]
[TimeControl "180+1"]
[Date "2021.08.24"]
[WhiteClock "0:00:09"]
[BlackClock "0:00:04"]

1. e4 {[%clk 0:03:00]}  c5 {[%clk 0:02:59]} 2. Nf3 {[%clk 0:02:55]}  d6 {[%clk 0:02:59]} 3. Bb5+ {[%clk 0:02:53]}  Nd7 {[%clk 0:02:56]} 4. Ba4 {[%clk 0:02:52]}  a6 {[%clk 0:02:53]} 5. c4 {[%clk 0:02:52]}  Nf6 {[%clk 0:02:52]} 6. O-O {[%clk 0:02:50]}  g6 {[%clk 0:02:49]} 7. Nc3 {[%clk 0:02:46]}  Bg7 {[%clk 0:02:49]} 8. d3 {[%clk 0:02:45]}  O-O {[%clk 0:02:48]} 9. a3 {[%clk 0:02:42]}  Ne5 {[%clk 0:02:44]} 10. h3 {[%clk 0:02:38]}  Rb8 {[%clk 0:02:43]} 11. Nxe5 {[%clk 0:02:28]}  dxe5 {[%clk 0:02:43]} 12. b4 {[%clk 0:02:25]}  Qd6 {[%clk 0:02:39]} 13. Rb1 {[%clk 0:02:12]}  Rd8 {[%clk 0:02:35]} 14. Bc2 {[%clk 0:02:05]}  b6 {[%clk 0:02:20]} 15. Be3 {[%clk 0:02:02]}  Nd7 {[%clk 0:02:14]} 16. Qc1 {[%clk 0:01:58]}  a5 {[%clk 0:02:08]} 17. bxa5 {[%clk 0:01:48]}  bxa5 {[%clk 0:02:08]} 18. Rxb8 {[%clk 0:01:46]}  Qxb8 {[%clk 0:02:07]} 19. Qa1 {[%clk 0:01:46]}  Qc7 {[%clk 0:01:57]} 20. Rb1 {[%clk 0:01:41]}  Ba6 {[%clk 0:01:53]} 21. Rb2 {[%clk 0:01:15]}  e6 {[%clk 0:01:30]} 22. Qb1 {[%clk 0:01:06]}  Nb8 {[%clk 0:01:09]} 23. Rb6 {[%clk 0:00:39]}  Bf8 {[%clk 0:00:46]} 24. Na4 {[%clk 0:00:39]}  Qc8 {[%clk 0:00:25]} 25. Bxc5 {[%clk 0:00:18]}  Nd7 {[%clk 0:00:23]} 26. Bxf8 {[%clk 0:00:18]}  Nxf8 {[%clk 0:00:05]} 27. Rb2 {[%clk 0:00:11]}  Nd7 {[%clk 0:00:05]} 28. Nb6 {[%clk 0:00:10]}  Nxb6 {[%clk 0:00:06]} 29. Rxb6 {[%clk 0:00:11]}  Kg7 {[%clk 0:00:04]} 30. Ba4 {[%clk 0:00:11]}  Rd4 {[%clk 0:00:03]} 31. Rc6 {[%clk 0:00:10]}  Qb7 {[%clk 0:00:01]} 32. Qxb7 {[%clk 0:00:10]}  Bxb7 {[%clk 0:00:02]} 33. Rc7 {[%clk 0:00:10]}  Ba6 {[%clk 0:00:02]} 34. Bc2 {[%clk 0:00:10]}  a4 {[%clk 0:00:01]} 35. Kf1 {[%clk 0:00:11]}  Kf6 {[%clk 0:00:01]} 36. Ke2 {[%clk 0:00:11]}  Rd6 {[%clk 0:00:01]} 37. Bxa4 {[%clk 0:00:11]}  Rb6 {[%clk 0:00:02]} 38. Be8 {[%clk 0:00:10]}  Rb2+ {[%clk 0:00:03]} 39. Kf3 {[%clk 0:00:10]}  Rb3 {[%clk 0:00:03]} 40. Ke3 {[%clk 0:00:09]}  Kg5 {[%clk 0:00:04]} 41. Bxf7 {[%clk 0:00:09]}  Rxa3 {[%clk 0:00:05]} 42. Bxe6 {[%clk 0:00:09]}  Kf6 {[%clk 0:00:04]} 43. Bd5 {[%clk 0:00:09]}  Bc8 {[%clk 0:00:04]} 44. Rxc8 {[%clk 0:00:09]} 1-0


[Site "https://www.chess.com"]

[Event "Titled Tuesday Blitz August 24 2021"]
[White "Grafil, Franz Robert"]
[Black "Lazavik, Denis"]
[WhiteFideId "5205298"]
[BlackFideId "13515110"]
[WhiteElo "2211"]
[BlackElo "2436"]
[Result "0-1"]
[Round "02"]
[TimeControl "180+1"]
[Date "2021.08.24"]
[WhiteClock "0:00:02"]
[BlackClock "0:00:04"]

1. d4 {[%clk 0:03:00]}  Nf6 {[%clk 0:02:59]} 2. c4 {[%clk 0:02:54]}  e6 {[%clk 0:03:00]} 3. g3 {[%clk 0:02:54]}  d5 {[%clk 0:02:59]} 4. Nf3 {[%clk 0:02:54]}  Be7 {[%clk 0:02:58]} 5. Bg2 {[%clk 0:02:51]}  O-O {[%clk 0:02:59]} 6. O-O {[%clk 0:02:52]}  dxc4 {[%clk 0:02:58]} 7. Qa4 {[%clk 0:02:51]}  a6 {[%clk 0:02:56]} 8. Qxc4 {[%clk 0:02:52]}  b5 {[%clk 0:02:55]} 9. Qc2 {[%clk 0:02:52]}  Bb7 {[%clk 0:02:54]} 10. Bd2 {[%clk 0:02:48]}  Be4 {[%clk 0:02:51]} 11. Qc1 {[%clk 0:02:47]}  Nc6 {[%clk 0:02:49]} 12. e3 {[%clk 0:02:30]}  b4 {[%clk 0:02:43]} 13. Rd1 {[%clk 0:02:08]}  Qd5 {[%clk 0:02:32]} 14. Nh4 {[%clk 0:02:08]}  Bxg2 {[%clk 0:02:23]} 15. Nxg2 {[%clk 0:02:08]}  e5 {[%clk 0:02:22]} 16. a3 {[%clk 0:01:32]}  exd4 {[%clk 0:01:55]} 17. axb4 {[%clk 0:01:28]}  Ne5 {[%clk 0:01:48]} 18. Ra5 {[%clk 0:00:59]}  Nf3+ {[%clk 0:01:36]} 19. Kh1 {[%clk 0:00:59]}  c5 {[%clk 0:01:20]} 20. exd4 {[%clk 0:00:47]}  Ng4 {[%clk 0:01:04]} 21. Be3 {[%clk 0:00:39]}  Qh5 {[%clk 0:00:11]} 22. h4 {[%clk 0:00:35]}  g5 {[%clk 0:00:07]} 23. Nd2 {[%clk 0:00:31]}  Nxe3 {[%clk 0:00:02]} 24. Nxf3 {[%clk 0:00:28]}  Qxf3 {[%clk 0:00:02]} 25. fxe3 {[%clk 0:00:27]}  Qxg3 {[%clk 0:00:02]} 26. Rf1 {[%clk 0:00:13]}  gxh4 {[%clk 0:00:02]} 27. Qe1 {[%clk 0:00:13]}  Qh3+ {[%clk 0:00:02]} 28. Kg1 {[%clk 0:00:13]}  Kh8 {[%clk 0:00:03]} 29. bxc5 {[%clk 0:00:06]}  Rg8 {[%clk 0:00:03]} 30. Rf2 {[%clk 0:00:07]}  Rg3 {[%clk 0:00:03]} 31. b4 {[%clk 0:00:07]}  Rag8 {[%clk 0:00:03]} 32. Raa2 {[%clk 0:00:08]}  Qg4 {[%clk 0:00:02]} 33. Qe2 {[%clk 0:00:07]}  Qg5 {[%clk 0:00:02]} 34. Kh2 {[%clk 0:00:03]}  h3 {[%clk 0:00:03]} 35. Nf4 {[%clk 0:00:03]}  Rg1 {[%clk 0:00:04]} 36. Nxh3 {[%clk 0:00:02]}  Qg3# {[%clk 0:00:04]} 0-1


[Site "https://www.chess.com"]

[Event "Titled Tuesday Blitz August 24 2021"]
[White "Hovhannisyan, Robert"]
[Black "Kavyev, Ruslan"]
[WhiteFideId "13302507"]
[BlackFideId "34110981"]
[WhiteElo "2669"]
[BlackElo "2172"]
[Result "1-0"]
[Round "02"]
[TimeControl "180+1"]
[Date "2021.08.24"]
[WhiteClock "0:01:42"]
[BlackClock "0:00:50"]

1. Nc3 {[%clk 0:03:00]}  c5 {[%clk 0:02:49]} 2. Nf3 {[%clk 0:02:59]}  Nf6 {[%clk 0:02:47]} 3. e4 {[%clk 0:02:55]}  d6 {[%clk 0:02:48]} 4. d4 {[%clk 0:02:56]}  cxd4 {[%clk 0:02:49]} 5. Nxd4 {[%clk 0:02:56]}  a6 {[%clk 0:02:49]} 6. Be3 {[%clk 0:02:53]}  e5 {[%clk 0:02:48]} 7. Nf3 {[%clk 0:02:53]}  Be7 {[%clk 0:02:48]} 8. Bc4 {[%clk 0:02:53]}  O-O {[%clk 0:02:48]} 9. O-O {[%clk 0:02:52]}  Qc7 {[%clk 0:02:49]} 10. Nd5 {[%clk 0:02:46]}  Nxd5 {[%clk 0:02:46]} 11. Bxd5 {[%clk 0:02:47]}  Be6 {[%clk 0:02:46]} 12. c4 {[%clk 0:02:40]}  Nd7 {[%clk 0:02:33]} 13. Rc1 {[%clk 0:02:31]}  Nf6 {[%clk 0:02:29]} 14. Qb3 {[%clk 0:02:28]}  Bxd5 {[%clk 0:02:21]} 15. cxd5 {[%clk 0:02:28]}  Qd7 {[%clk 0:02:22]} 16. Nd2 {[%clk 0:02:25]}  Ng4 {[%clk 0:02:12]} 17. Bb6 {[%clk 0:02:21]}  Bd8 {[%clk 0:02:13]} 18. f3 {[%clk 0:02:15]}  Nf6 {[%clk 0:01:25]} 19. Rc3 {[%clk 0:02:15]}  Nh5 {[%clk 0:01:24]} 20. g3 {[%clk 0:02:04]}  f5 {[%clk 0:01:23]} 21. exf5 {[%clk 0:02:03]}  Qxf5 {[%clk 0:01:17]} 22. Ne4 {[%clk 0:01:56]}  Qg6 {[%clk 0:00:49]} 23. Bxd8 {[%clk 0:01:46]}  Raxd8 {[%clk 0:00:50]} 24. Qxb7 {[%clk 0:01:46]}  Rxf3 {[%clk 0:00:50]} 25. Rcxf3 {[%clk 0:01:43]}  Qxe4 {[%clk 0:00:49]} 26. Qf7+ {[%clk 0:01:43]}  Kh8 {[%clk 0:00:50]} 27. Qf8+ {[%clk 0:01:42]} 1-0


[Site "https://www.chess.com"]

[Event "Titled Tuesday Blitz August 24 2021"]
[White "Kadric, Denis"]
[Black "Cremisi, Daniel"]
[WhiteFideId "14403803"]
[BlackFideId "2089882"]
[WhiteElo "2758"]
[BlackElo "2511"]
[Result "1-0"]
[Round "02"]
[TimeControl "180+1"]
[Date "2021.08.24"]
[WhiteClock "0:00:18"]
[BlackClock "0:00:11"]

1. d3 {[%clk 0:03:00]}  Nf6 {[%clk 0:02:52]} 2. Nd2 {[%clk 0:03:00]}  d5 {[%clk 0:02:53]} 3. e4 {[%clk 0:03:01]}  dxe4 {[%clk 0:02:53]} 4. dxe4 {[%clk 0:03:02]}  g6 {[%clk 0:02:53]} 5. Ngf3 {[%clk 0:03:00]}  Bg7 {[%clk 0:02:53]} 6. c3 {[%clk 0:03:00]}  O-O {[%clk 0:02:54]} 7. Be2 {[%clk 0:02:58]}  Nfd7 {[%clk 0:02:53]} 8. O-O {[%clk 0:02:58]}  b6 {[%clk 0:02:54]} 9. a4 {[%clk 0:02:57]}  a5 {[%clk 0:02:53]} 10. Qc2 {[%clk 0:02:57]}  Ba6 {[%clk 0:02:53]} 11. Bxa6 {[%clk 0:02:55]}  Nxa6 {[%clk 0:02:53]} 12. Rd1 {[%clk 0:02:54]}  Qc8 {[%clk 0:02:54]} 13. Nb3 {[%clk 0:02:52]}  Ne5 {[%clk 0:02:53]} 14. Nxe5 {[%clk 0:02:43]}  Bxe5 {[%clk 0:02:52]} 15. Bh6 {[%clk 0:02:43]}  Bg7 {[%clk 0:02:51]} 16. Bxg7 {[%clk 0:02:43]}  Kxg7 {[%clk 0:02:52]} 17. Rd4 {[%clk 0:02:42]}  Rd8 {[%clk 0:02:52]} 18. Rad1 {[%clk 0:02:41]}  Rxd4 {[%clk 0:02:52]} 19. Rxd4 {[%clk 0:02:42]}  Qe8 {[%clk 0:02:49]} 20. Qd1 {[%clk 0:02:38]}  c5 {[%clk 0:02:38]} 21. Rd7 {[%clk 0:02:29]}  Nb8 {[%clk 0:02:37]} 22. Rb7 {[%clk 0:02:25]}  Qxa4 {[%clk 0:02:35]} 23. Rxb6 {[%clk 0:02:19]}  Nd7 {[%clk 0:02:16]} 24. Rb7 {[%clk 0:02:11]}  Rd8 {[%clk 0:02:16]} 25. h3 {[%clk 0:01:27]}  c4 {[%clk 0:02:15]} 26. Qd4+ {[%clk 0:01:16]}  e5 {[%clk 0:02:14]} 27. Qd6 {[%clk 0:01:16]}  cxb3 {[%clk 0:02:01]} 28. Qe7 {[%clk 0:01:16]}  Qc6 {[%clk 0:01:54]} 29. Ra7 {[%clk 0:01:12]}  Qc8 {[%clk 0:01:44]} 30. Rxa5 {[%clk 0:01:06]}  Kg8 {[%clk 0:01:40]} 31. Rd5 {[%clk 0:01:03]}  Qa8 {[%clk 0:00:59]} 32. Kh2 {[%clk 0:00:59]}  Qc8 {[%clk 0:00:42]} 33. c4 {[%clk 0:00:56]}  Rf8 {[%clk 0:00:39]} 34. Rxd7 {[%clk 0:00:54]}  Qxc4 {[%clk 0:00:39]} 35. Qxe5 {[%clk 0:00:55]}  Qe2 {[%clk 0:00:37]} 36. f3 {[%clk 0:00:42]}  Qe3 {[%clk 0:00:30]} 37. Rb7 {[%clk 0:00:38]}  h5 {[%clk 0:00:28]} 38. Qc3 {[%clk 0:00:30]}  Qf4+ {[%clk 0:00:27]} 39. g3 {[%clk 0:00:31]}  Qd6 {[%clk 0:00:25]} 40. h4 {[%clk 0:00:27]}  Rd8 {[%clk 0:00:17]} 41. Qxb3 {[%clk 0:00:22]}  Qd2+ {[%clk 0:00:17]} 42. Kh3 {[%clk 0:00:22]}  Rf8 {[%clk 0:00:17]} 43. Rc7 {[%clk 0:00:20]}  Qe1 {[%clk 0:00:16]} 44. Qc2 {[%clk 0:00:19]}  Qh1+ {[%clk 0:00:16]} 45. Qh2 {[%clk 0:00:18]}  Qxf3 {[%clk 0:00:16]} 46. Qg2 {[%clk 0:00:18]}  Qg4+ {[%clk 0:00:15]} 47. Kh2 {[%clk 0:00:18]}  Rd8 {[%clk 0:00:15]} 48. Rc2 {[%clk 0:00:18]}  Qe6 {[%clk 0:00:15]} 49. b4 {[%clk 0:00:18]}  Qb6 {[%clk 0:00:14]} 50. Rb2 {[%clk 0:00:18]}  Rd4 {[%clk 0:00:14]} 51. b5 {[%clk 0:00:18]}  Rd7 {[%clk 0:00:13]} 52. Qf2 {[%clk 0:00:18]}  Qb7 {[%clk 0:00:10]} 53. Qe3 {[%clk 0:00:17]}  Rd6 {[%clk 0:00:09]} 54. b6 {[%clk 0:00:17]}  Re6 {[%clk 0:00:10]} 55. e5 {[%clk 0:00:17]}  Re7 {[%clk 0:00:09]} 56. Kg1 {[%clk 0:00:17]}  Re6 {[%clk 0:00:10]} 57. Kf2 {[%clk 0:00:17]}  Re7 {[%clk 0:00:10]} 58. Qf3 {[%clk 0:00:18]}  Re6 {[%clk 0:00:11]} 59. Qxb7 {[%clk 0:00:18]} 1-0


[Site "https://www.chess.com"]

[Event "Titled Tuesday Blitz August 24 2021"]
[White "Kekelidze, Mikheil"]
[Black "Itkis, Boris"]
[WhiteFideId "13600818"]
[BlackFideId "1209167"]
[WhiteElo "2387"]
[BlackElo "2226"]
[Result "1-0"]
[Round "02"]
[TimeControl "180+1"]
[Date "2021.08.24"]
[WhiteClock "0:01:14"]
[BlackClock "0:00:05"]

1. d4 {[%clk 0:03:00]}  d5 {[%clk 0:02:59]} 2. c4 {[%clk 0:03:00]}  dxc4 {[%clk 0:02:59]} 3. e4 {[%clk 0:02:59]}  b5 {[%clk 0:02:58]} 4. a4 {[%clk 0:02:56]}  c6 {[%clk 0:02:57]} 5. Nf3 {[%clk 0:02:55]}  Bb7 {[%clk 0:02:55]} 6. b3 {[%clk 0:02:54]}  e5 {[%clk 0:02:11]} 7. axb5 {[%clk 0:02:50]}  Bb4+ {[%clk 0:01:59]} 8. Bd2 {[%clk 0:02:49]}  Bxd2+ {[%clk 0:01:40]} 9. Qxd2 {[%clk 0:02:46]}  cxb5 {[%clk 0:01:40]} 10. Nxe5 {[%clk 0:02:35]}  Bxe4 {[%clk 0:01:31]} 11. Nc3 {[%clk 0:02:35]}  Nf6 {[%clk 0:01:28]} 12. bxc4 {[%clk 0:02:34]}  O-O {[%clk 0:01:24]} 13. Nxb5 {[%clk 0:02:30]}  Re8 {[%clk 0:01:16]} 14. f3 {[%clk 0:01:56]}  Bb7 {[%clk 0:01:00]} 15. Be2 {[%clk 0:01:56]}  Nc6 {[%clk 0:01:00]} 16. Nxc6 {[%clk 0:01:53]}  Bxc6 {[%clk 0:00:59]} 17. Nc3 {[%clk 0:01:53]}  Nh5 {[%clk 0:00:43]} 18. O-O {[%clk 0:01:49]}  Qh4 {[%clk 0:00:43]} 19. Rf2 {[%clk 0:01:40]}  Nf4 {[%clk 0:00:42]} 20. Bf1 {[%clk 0:01:40]}  Bd7 {[%clk 0:00:36]} 21. g3 {[%clk 0:01:38]}  Nh3+ {[%clk 0:00:35]} 22. Bxh3 {[%clk 0:01:36]}  Qxh3 {[%clk 0:00:35]} 23. Re1 {[%clk 0:01:31]}  g6 {[%clk 0:00:33]} 24. Rfe2 {[%clk 0:01:29]}  Qf5 {[%clk 0:00:29]} 25. Ne4 {[%clk 0:01:17]}  Bc6 {[%clk 0:00:14]} 26. d5 {[%clk 0:01:17]}  Bd7 {[%clk 0:00:13]} 27. Qd4 {[%clk 0:01:16]}  Rec8 {[%clk 0:00:05]} 28. Nf6+ {[%clk 0:01:15]}  Kf8 {[%clk 0:00:05]} 29. Nxh7+ {[%clk 0:01:14]} 1-0


[Site "https://www.chess.com"]

[Event "Titled Tuesday Blitz August 24 2021"]
[White "Keso, Elias"]
[Black "Drozdowski, Kacper"]
[WhiteFideId "514942"]
[BlackFideId "1136720"]
[WhiteElo "2530"]
[BlackElo "2788"]
[Result "0-1"]
[Round "02"]
[TimeControl "180+1"]
[Date "2021.08.24"]
[WhiteClock "0:01:29"]
[BlackClock "0:00:44"]

1. f4 {[%clk 0:03:00]}  g6 {[%clk 0:02:59]} 2. Nf3 {[%clk 0:03:00]}  Bg7 {[%clk 0:02:59]} 3. c4 {[%clk 0:03:01]}  d6 {[%clk 0:02:59]} 4. Nc3 {[%clk 0:03:01]}  e5 {[%clk 0:02:56]} 5. e4 {[%clk 0:02:52]}  Nc6 {[%clk 0:02:54]} 6. d3 {[%clk 0:02:52]}  Bg4 {[%clk 0:02:47]} 7. Be2 {[%clk 0:02:52]}  Nge7 {[%clk 0:02:43]} 8. O-O {[%clk 0:02:52]}  Bxf3 {[%clk 0:02:39]} 9. Bxf3 {[%clk 0:02:50]}  O-O {[%clk 0:02:38]} 10. Rb1 {[%clk 0:02:47]}  Nd4 {[%clk 0:02:36]} 11. b4 {[%clk 0:02:43]}  a5 {[%clk 0:02:35]} 12. b5 {[%clk 0:02:43]}  exf4 {[%clk 0:02:32]} 13. Nd5 {[%clk 0:02:32]}  Nxd5 {[%clk 0:02:31]} 14. cxd5 {[%clk 0:02:33]}  Be5 {[%clk 0:02:26]} 15. Qa4 {[%clk 0:02:25]}  f5 {[%clk 0:02:15]} 16. Bb2 {[%clk 0:02:23]}  fxe4 {[%clk 0:02:08]} 17. dxe4 {[%clk 0:01:53]}  Nxf3+ {[%clk 0:01:55]} 18. Rxf3 {[%clk 0:01:52]}  Qf6 {[%clk 0:01:47]} 19. Bxe5 {[%clk 0:01:49]}  Qxe5 {[%clk 0:01:47]} 20. Rc1 {[%clk 0:01:48]}  Rf7 {[%clk 0:01:46]} 21. Rc4 {[%clk 0:01:47]}  b6 {[%clk 0:01:44]} 22. Qc2 {[%clk 0:01:45]}  Qe7 {[%clk 0:01:39]} 23. Rfc3 {[%clk 0:01:44]}  Rc8 {[%clk 0:01:05]} 24. Rc6 {[%clk 0:01:43]}  Qe5 {[%clk 0:00:59]} 25. Rxc7 {[%clk 0:01:32]}  Rcxc7 {[%clk 0:00:53]} 26. Rxc7 {[%clk 0:01:32]}  Rxc7 {[%clk 0:00:45]} 27. Qxc7 {[%clk 0:01:33]}  Qxe4 {[%clk 0:00:45]} 28. Qxd6 {[%clk 0:01:29]}  Qe1# {[%clk 0:00:44]} 0-1


[Site "https://www.chess.com"]

[Event "Titled Tuesday Blitz August 24 2021"]
[White "Lashkin, Jegor"]
[Black "Real De Azua, Ernesto"]
[WhiteFideId "13907808"]
[BlackFideId "108154"]
[WhiteElo "2293"]
[BlackElo "2476"]
[Result "1-0"]
[Round "02"]
[TimeControl "180+1"]
[Date "2021.08.24"]
[WhiteClock "0:00:09"]
[BlackClock "0:00:05"]

1. d4 {[%clk 0:03:00]}  Nf6 {[%clk 0:02:59]} 2. c4 {[%clk 0:03:01]}  e6 {[%clk 0:02:59]} 3. Nf3 {[%clk 0:03:01]}  d5 {[%clk 0:02:58]} 4. Nc3 {[%clk 0:03:01]}  Bb4 {[%clk 0:02:58]} 5. cxd5 {[%clk 0:03:00]}  exd5 {[%clk 0:02:58]} 6. Bg5 {[%clk 0:03:00]}  h6 {[%clk 0:02:58]} 7. Bh4 {[%clk 0:03:00]}  O-O {[%clk 0:02:56]} 8. e3 {[%clk 0:03:00]}  Bf5 {[%clk 0:02:55]} 9. Be2 {[%clk 0:02:55]}  Nbd7 {[%clk 0:02:36]} 10. Qb3 {[%clk 0:02:54]}  Bxc3+ {[%clk 0:02:35]} 11. Qxc3 {[%clk 0:02:52]}  c6 {[%clk 0:02:33]} 12. Nd2 {[%clk 0:02:52]}  Ne4 {[%clk 0:02:33]} 13. Bxd8 {[%clk 0:02:52]}  Nxc3 {[%clk 0:02:32]} 14. bxc3 {[%clk 0:02:52]}  Rfxd8 {[%clk 0:02:33]} 15. a4 {[%clk 0:02:50]}  Rac8 {[%clk 0:02:26]} 16. Nf1 {[%clk 0:02:47]}  b6 {[%clk 0:02:08]} 17. Ng3 {[%clk 0:02:46]}  Be6 {[%clk 0:02:03]} 18. Kd2 {[%clk 0:02:46]}  c5 {[%clk 0:01:59]} 19. h4 {[%clk 0:02:28]}  Kf8 {[%clk 0:01:58]} 20. h5 {[%clk 0:02:28]}  Ke7 {[%clk 0:01:58]} 21. Bd3 {[%clk 0:02:27]}  Rc7 {[%clk 0:01:52]} 22. f3 {[%clk 0:02:24]}  Nf6 {[%clk 0:01:47]} 23. Ne2 {[%clk 0:02:23]}  Rdc8 {[%clk 0:01:44]} 24. g4 {[%clk 0:02:19]}  Ne8 {[%clk 0:01:38]} 25. Rhb1 {[%clk 0:02:03]}  Nd6 {[%clk 0:01:34]} 26. a5 {[%clk 0:02:02]}  c4 {[%clk 0:01:14]} 27. Bc2 {[%clk 0:01:46]}  b5 {[%clk 0:01:14]} 28. Nc1 {[%clk 0:01:34]}  a6 {[%clk 0:01:07]} 29. Na2 {[%clk 0:01:34]}  f6 {[%clk 0:00:47]} 30. Nb4 {[%clk 0:01:34]}  Ra8 {[%clk 0:00:47]} 31. Rg1 {[%clk 0:01:29]}  Raa7 {[%clk 0:00:38]} 32. e4 {[%clk 0:01:28]}  dxe4 {[%clk 0:00:36]} 33. fxe4 {[%clk 0:01:29]}  Nf7 {[%clk 0:00:36]} 34. Ke3 {[%clk 0:01:23]}  Rc8 {[%clk 0:00:31]} 35. Raf1 {[%clk 0:01:17]}  Ng5 {[%clk 0:00:26]} 36. Rg3 {[%clk 0:01:03]}  Kd6 {[%clk 0:00:26]} 37. Kd2 {[%clk 0:01:01]}  Bd7 {[%clk 0:00:25]} 38. Re1 {[%clk 0:00:55]}  Re8 {[%clk 0:00:25]} 39. Ke3 {[%clk 0:00:34]}  Bc8 {[%clk 0:00:22]} 40. Kf4 {[%clk 0:00:31]}  Rae7 {[%clk 0:00:21]} 41. Rge3 {[%clk 0:00:29]}  Bb7 {[%clk 0:00:20]} 42. d5 {[%clk 0:00:21]}  Nf7 {[%clk 0:00:18]} 43. Bd1 {[%clk 0:00:20]}  Kc5 {[%clk 0:00:17]} 44. Be2 {[%clk 0:00:16]}  Nd6 {[%clk 0:00:18]} 45. Bf1 {[%clk 0:00:16]}  Re5 {[%clk 0:00:17]} 46. Nc2 {[%clk 0:00:15]}  Bc8 {[%clk 0:00:14]} 47. Nd4 {[%clk 0:00:14]}  Bd7 {[%clk 0:00:15]} 48. Nf3 {[%clk 0:00:14]}  R5e7 {[%clk 0:00:14]} 49. e5 {[%clk 0:00:14]}  fxe5+ {[%clk 0:00:14]} 50. Nxe5 {[%clk 0:00:14]}  Rf8+ {[%clk 0:00:11]} 51. Kg3 {[%clk 0:00:14]}  Rfe8 {[%clk 0:00:05]} 52. Nxd7+ {[%clk 0:00:12]}  Rxd7 {[%clk 0:00:05]} 53. Rxe8 {[%clk 0:00:12]}  Nxe8 {[%clk 0:00:06]} 54. Rxe8 {[%clk 0:00:12]}  Rxd5 {[%clk 0:00:07]} 55. Rc8+ {[%clk 0:00:12]}  Kd6 {[%clk 0:00:07]} 56. Rd8+ {[%clk 0:00:12]}  Ke5 {[%clk 0:00:07]} 57. Rxd5+ {[%clk 0:00:12]}  Kxd5 {[%clk 0:00:08]} 58. Kf3 {[%clk 0:00:11]}  Kc5 {[%clk 0:00:07]} 59. Ke3 {[%clk 0:00:11]}  b4 {[%clk 0:00:08]} 60. cxb4+ {[%clk 0:00:12]}  Kxb4 {[%clk 0:00:09]} 61. Kd2 {[%clk 0:00:11]}  Kb3 {[%clk 0:00:06]} 62. Kc1 {[%clk 0:00:10]}  Kc3 {[%clk 0:00:07]} 63. Bg2 {[%clk 0:00:10]}  Kb4 {[%clk 0:00:06]} 64. Bd5 {[%clk 0:00:10]}  Kxa5 {[%clk 0:00:03]} 65. Bxc4 {[%clk 0:00:10]}  Kb6 {[%clk 0:00:04]} 66. Kd2 {[%clk 0:00:09]}  a5 {[%clk 0:00:04]} 67. Ke3 {[%clk 0:00:09]}  Kc5 {[%clk 0:00:04]} 68. Bg8 {[%clk 0:00:09]}  Kd6 {[%clk 0:00:05]} 69. Kf4 {[%clk 0:00:09]}  Ke7 {[%clk 0:00:04]} 70. Kf5 {[%clk 0:00:10]}  a4 {[%clk 0:00:05]} 71. Kg6 {[%clk 0:00:09]}  Kf8 {[%clk 0:00:05]} 72. Bc4 {[%clk 0:00:09]} 1-0


[Site "https://www.chess.com"]